bitfinex-derivatives/quotes_BTCF0:USTF0_20250114
["timestamp","ask_amount","ask_price","bid_price","bid_amount"]
[1736862780684,0.3608,96447.0,96446.0,0.003]
[1736862782188,0.3608,96447.0,96438.0,0.24448364]
[1736862782487,0.3608,96447.0,96426.0,0.17055563]
[1736862782879,0.3608,96447.0,96430.0,0.3608]
[1736862783079,0.3608,96447.0,96446.0,0.002]
[1736862783281,0.3618,96447.0,96446.0,0.002]
[1736862783986,0.3618,96447.0,96430.0,0.3608]
[1736862784182,0.3608,96438.0,96430.0,0.3608]
[1736862784387,0.15423073,96440.0,96430.0,0.3608]
[1736862784586,0.05187,96436.0,96430.0,0.3608]
[1736862784789,0.3608,96437.0,96430.0,0.3608]
[1736862785086,0.15423073,96440.0,96430.0,0.3608]
[1736862785485,0.3608,96438.0,96426.0,0.24448364]
[1736862785686,0.05187,96437.0,96420.0,0.24448364]
[1736862785888,0.51503073,96430.0,96420.0,0.24448364]
[1736862786277,0.1748,96429.0,96420.0,0.24448364]
[1736862786787,0.3608,96430.0,96420.0,0.24448364]
[1736862787090,0.3608,96430.0,96419.0,0.51503073]
[1736862787091,0.51503073,96430.0,96419.0,0.3608]
[1736862787483,0.051874,96429.0,96411.0,0.3608]
[1736862787792,0.051874,96429.0,96421.0,0.3608]
[1736862787993,0.051874,96429.0,96420.0,0.005]
[1736862788694,0.3618,96430.0,96420.0,0.005]
[1736862788888,0.001,96430.0,96420.0,0.005]
[1736862789089,0.001,96430.0,96425.0,0.3608]
[1736862789282,0.15423073,96470.0,96428.0,0.051875]
[1736862789486,0.00052001,96450.0,96445.0,0.3608]
[1736862789682,0.3421,96466.0,96445.0,0.7216]
[1736862789992,0.15423073,96460.0,96445.0,0.3608]
[1736862790393,0.15423073,96460.0,96456.0,0.3608]
[1736862790586,0.36132001,96466.0,96456.0,0.3608]
[1736862790791,0.3608,96466.0,96456.0,0.3608]
[1736862791186,0.00255583,96457.0,96456.0,0.3608]
[1736862791992,0.00255583,96457.0,96437.0,0.24448364]
[1736862792186,0.3608,96442.0,96437.0,0.24448364]
[1736862792496,0.3608,96442.0,96416.0,0.3608]
[1736862792690,0.051885,96409.0,96401.0,0.48896728]
[1736862792885,0.3608,96402.0,96401.0,0.48896728]
[1736862793692,0.3608,96402.0,96400.0,0.1]
[1736862794087,0.3618,96402.0,96401.0,0.165]
[1736862794284,0.3618,96402.0,96401.0,0.002]
[1736862794690,0.3618,96402.0,96358.0,0.3701]
[1736862794691,0.3618,96402.0,96357.0,0.00155679]
[1736862794893,0.3608,96366.0,96359.0,0.1775]
[1736862795792,0.3608,96366.0,96360.0,0.1778]
[1736862796287,0.3608,96366.0,96359.0,0.1775]
[1736862796288,0.051909,96365.0,96359.0,0.1775]
[1736862796884,0.051909,96365.0,96360.0,0.007]
[1736862797492,0.052909,96365.0,96360.0,0.007]
[1736862797692,0.052909,96365.0,96359.0,0.1815]
[1736862798499,0.051909,96365.0,96359.0,0.1815]
[1736862798698,0.052909,96365.0,96359.0,0.1815]
[1736862799399,0.052909,96365.0,96360.0,0.004]
[1736862799896,0.001,96365.0,96360.0,0.004]
[1736862800099,0.3608,96366.0,96359.0,0.1775]
[1736862800400,0.001,96365.0,96359.0,0.1815]
[1736862801002,0.001,96365.0,96360.0,0.004]
[1736862801501,0.3618,96366.0,96360.0,0.004]
[1736862802400,0.3608,96377.0,96365.0,0.3608]
[1736862802604,0.051903,96376.0,96365.0,0.3608]
[1736862802993,0.15423073,96380.0,96374.0,0.3608]
[1736862803298,0.051891,96398.0,96376.0,0.3608]
[1736862803498,0.051891,96398.0,96389.0,0.3608]
[1736862803693,0.15423073,96410.0,96389.0,0.3608]
[1736862803899,0.15423073,96400.0,96390.0,0.1609]
[1736862804497,0.15423073,96400.0,96398.0,0.3608]
[1736862804806,0.20611673,96408.0,96398.0,0.3608]
[1736862805402,0.20611673,96408.0,96407.0,0.3608]
[1736862805600,0.051881,96418.0,96407.0,0.3608]
[1736862805800,0.00052001,96434.0,96415.0,0.3608]
[1736862806008,0.00052001,96436.0,96423.0,0.3608]
[1736862806200,0.05187,96437.0,96434.0,0.3608]
[1736862806399,0.15423073,96440.0,96434.0,0.3608]
[1736862806606,0.051865,96447.0,96434.0,0.3608]
[1736862807511,0.001,96436.0,96434.0,0.3608]
[1736862807904,0.005,96440.0,96434.0,0.3608]
[1736862809205,0.01,96447.0,96434.0,0.7216]
[1736862809406,0.00037,96451.0,96445.0,0.3608]
[1736862809611,0.412647,96481.0,96460.0,0.15423073]
[1736862809911,0.15423073,96470.0,96464.0,0.3608]
[1736862810105,0.20608273,96470.0,96450.0,0.3608]
[1736862810308,0.3608,96469.0,96450.0,0.3608]
[1736862810603,0.001,96451.0,96450.0,0.3608]
[1736862810805,0.001,96451.0,96445.0,0.002]
[1736862811006,0.052862,96451.0,96445.0,0.002]
[1736862811309,0.051862,96451.0,96444.0,0.00155518]
[1736862812306,0.1705,96459.0,96444.0,0.36235518]
[1736862812498,0.051857,96462.0,96452.0,0.3608]
[1736862812704,0.3608,96469.0,96452.0,0.3608]
[1736862813407,0.051851,96472.0,96461.0,0.3608]
[1736862813807,0.1705,96478.0,96461.0,0.3608]
[1736862813808,0.1705,96478.0,96469.0,0.3608]
[1736862814011,0.15578616,96480.0,96469.0,0.3608]
[1736862814204,0.15578616,96480.0,96461.0,0.3608]
[1736862814205,0.051847,96479.0,96461.0,0.3608]
[1736862814407,0.20608273,96471.0,96461.0,0.3608]
[1736862814706,0.3608,96477.0,96461.0,0.3608]
[1736862815107,0.15423073,96471.0,96461.0,0.3608]
[1736862815709,0.3608,96477.0,96461.0,0.3608]
[1736862816413,0.051855,96466.0,96450.0,0.3608]
[1736862816719,0.15423073,96462.0,96450.0,0.3608]
[1736862816919,0.051855,96466.0,96450.0,0.3608]
[1736862817114,0.051855,96466.0,96461.0,0.001]
[1736862817307,0.3608,96467.0,96461.0,0.001]
[1736862817511,0.15423073,96471.0,96461.0,0.001]
[1736862817819,0.001,96466.0,96459.0,0.3608]
[1736862818319,0.051852,96470.0,96461.0,0.001]
[1736862819727,0.3608,96464.0,96461.0,0.001]
[1736862820023,0.1682,96463.0,96459.0,0.002]
[1736862820321,0.002,96466.0,96459.0,0.002]
[1736862820522,0.051852,96470.0,96461.0,0.001]
[1736862820725,0.002,96470.0,96461.0,0.001]
[1736862821116,0.002,96470.0,96459.0,0.3628]
[1736862821312,0.002,96470.0,96459.0,0.002]
[1736862821717,0.002,96470.0,96466.0,0.3608]
[1736862822318,0.00155543,96480.0,96466.0,0.3608]
[1736862822518,0.00155543,96480.0,96476.0,0.3608]
[1736862823228,0.051847,96479.0,96466.0,0.3608]
[1736862823414,0.051849,96475.0,96466.0,0.3608]
[1736862823613,0.051849,96475.0,96461.0,0.001]
[1736862823920,0.051855,96464.0,96455.0,0.3608]
[1736862824130,0.15423073,96465.0,96455.0,0.3608]
[1736862824640,0.051851,96473.0,96455.0,0.3608]
[1736862825325,0.3608,96477.0,96455.0,0.3638]
[1736862825934,0.001,96473.0,96455.0,0.3638]
[1736862826440,0.001,96473.0,96463.0,0.3608]
[1736862826639,0.001,96477.0,96463.0,0.3608]
[1736862828334,0.001,96473.0,96471.0,0.3608]
[1736862829144,0.00155543,96480.0,96471.0,0.3608]
[1736862829337,0.002,96477.0,96471.0,0.3608]
[1736862829545,0.051849,96476.0,96471.0,0.3608]
[1736862829747,0.002,96477.0,96471.0,0.3608]
[1736862830042,0.007,96473.0,96471.0,0.3608]
[1736862831042,0.003,96473.0,96471.0,0.3608]
[1736862831543,0.007,96473.0,96471.0,0.3608]
[1736862831738,0.004,96473.0,96471.0,0.3608]
[1736862832337,0.051851,96472.0,96460.0,0.3608]
[1736862832540,0.15423073,96470.0,96460.0,0.3608]
[1736862832740,0.20608273,96470.0,96460.0,0.3608]
[1736862833441,0.051857,96461.0,96460.0,0.3608]
[1736862833637,0.051857,96461.0,96460.0,0.3618]
[1736862834443,0.06761114,96469.0,96460.0,0.3618]
[1736862834649,0.06761114,96469.0,96460.0,0.3608]
[1736862834947,0.06761114,96461.0,96460.0,0.3618]
[1736862836140,0.002,96469.0,96460.0,0.3618]
[1736862837246,0.051853,96468.0,96460.0,0.3618]
[1736862838047,0.002,96461.0,96460.0,0.3618]
[1736862838836,0.06713278,96467.0,96460.0,0.3618]
[1736862839449,0.06713278,96466.0,96460.0,0.3618]
[1736862839649,0.002,96461.0,96460.0,0.3618]
[1736862840141,0.002,96461.0,96460.0,0.3608]
[1736862840342,0.002,96461.0,96460.0,0.3618]
[1736862841240,0.002,96461.0,96460.0,0.001]
[1736862841851,0.06732635,96461.0,96460.0,0.001]
[1736862842048,0.051864,96449.0,96442.0,0.3608]
[1736862842553,0.051864,96449.0,96433.0,0.1749]
[1736862842744,0.051864,96449.0,96429.0,0.1637]
[1736862842948,0.05187,96438.0,96422.0,0.5268]
[1736862843142,0.15423073,96432.0,96422.0,0.5268]
[1736862843542,0.15423073,96432.0,96422.0,0.3608]
[1736862843945,0.051873,96431.0,96422.0,0.3608]
[1736862844149,0.11919935,96431.0,96422.0,0.3658]
[1736862844550,0.06732635,96431.0,96430.0,0.3608]
[1736862844947,0.06732635,96431.0,96423.0,0.001]
[1736862845147,0.001,96432.0,96422.0,0.3708]
[1736862845857,0.001,96432.0,96422.0,0.3658]
[1736862846054,0.001,96432.0,96430.0,0.003]
[1736862846245,0.001,96432.0,96431.0,0.3608]
[1736862846449,0.051861,96454.0,96431.0,0.3608]
[1736862846751,0.051856,96463.0,96440.0,0.51503073]
[1736862846953,0.051856,96463.0,96441.0,0.5007]
[1736862847147,0.15423073,96460.0,96441.0,0.5007]
[1736862847347,0.15578642,96451.0,96441.0,0.5007]
[1736862847751,0.00255569,96451.0,96441.0,0.5007]
[1736862848152,0.00255569,96451.0,96442.0,0.001]
[1736862848564,0.00255569,96451.0,96449.0,0.3608]
[1736862849357,0.001,96451.0,96450.0,0.001]
[1736862849557,0.05185,96475.0,96450.0,0.001]
[1736862849744,0.05185,96475.0,96466.0,0.3608]
[1736862850749,0.00155543,96480.0,96466.0,0.3608]
[1736862850945,0.15578616,96480.0,96466.0,0.3608]
[1736862851154,0.002,96475.0,96466.0,0.3608]
[1736862851658,0.051858,96459.0,96449.0,0.3608]
[1736862851854,0.051859,96457.0,96446.0,0.00155524]
[1736862852048,0.70322001,96458.0,96446.0,0.00155524]
[1736862852248,0.7027,96458.0,96446.0,0.00155524]
[1736862852657,0.051859,96457.0,96446.0,0.00155524]
[1736862853161,0.051859,96457.0,96446.0,0.00255524]
[1736862854655,0.052859,96457.0,96446.0,0.00755524]
[1736862855156,0.051859,96457.0,96446.0,0.00255524]
[1736862855356,0.051859,96457.0,96446.0,0.00555524]
[1736862855559,0.70322001,96458.0,96446.0,0.00555524]
[1736862855763,0.01078833,96464.0,96454.0,0.3608]
[1736862855764,0.001,96457.0,96454.0,0.3608]
[1736862857562,0.002,96457.0,96454.0,0.3608]
[1736862858071,0.002,96457.0,96454.0,0.3638]
[1736862858454,0.002,96457.0,96454.0,0.3608]
[1736862858664,0.002,96457.0,96454.0,0.3638]
[1736862859058,0.001,96457.0,96454.0,0.3638]
[1736862859662,0.3608,96470.0,96455.0,0.1666]
[1736862859858,0.51503073,96470.0,96455.0,0.1656]
[1736862860268,0.3608,96470.0,96455.0,0.1656]
[1736862860764,0.051853,96469.0,96455.0,0.1656]
[1736862861263,0.051858,96460.0,96454.0,0.3638]
[1736862861563,0.051858,96460.0,96455.0,0.002]
[1736862862167,0.051858,96460.0,96455.0,0.003]
[1736862862756,0.052858,96460.0,96455.0,0.003]
[1736862863160,0.001,96460.0,96455.0,0.003]
[1736862863665,0.051853,96468.0,96455.0,0.003]
[1736862863865,0.051853,96468.0,96455.0,0.002]
[1736862863866,0.06257443,96468.0,96455.0,0.002]
[1736862864461,0.06257443,96468.0,96463.0,0.3608]
[1736862864866,0.1777,96475.0,96463.0,0.3608]
[1736862865067,0.00155543,96480.0,96472.0,0.3608]
[1736862865268,0.24740267,96481.0,96477.0,0.3608]
[1736862865471,0.1,96500.0,96479.0,0.051847]
[1736862865767,0.1,96500.0,96499.0,0.3608]
[1736862865969,0.051818,96533.0,96499.0,0.6608]
[1736862866169,0.30941285,96507.0,96503.0,0.3608]
[1736862866373,0.051814,96542.0,96504.0,0.051834]
[1736862866571,0.051814,96542.0,96531.0,0.3608]
[1736862866763,0.01043926,96545.0,96531.0,0.3608]
[1736862867071,0.3608,96533.0,96510.0,0.3608]
[1736862867263,0.3608,96533.0,96518.0,0.3608]
[1736862868173,0.3608,96533.0,96531.0,0.001]
[1736862868674,0.3608,96533.0,96531.0,0.002]
[1736862869069,0.01479761,96533.0,96531.0,0.001]
[1736862869469,0.01479761,96533.0,96518.0,0.3608]
[1736862869669,0.02079761,96533.0,96531.0,0.001]
[1736862869870,0.01,96533.0,96531.0,0.001]
[1736862870775,0.015,96533.0,96531.0,0.002]
[1736862871770,0.012,96533.0,96531.0,0.001]
[1736862872576,0.015,96533.0,96531.0,0.002]
[1736862873276,0.02582941,96533.0,96531.0,0.002]
[1736862874678,0.1703,96532.0,96531.0,0.002]
[1736862875873,0.1763,96532.0,96531.0,0.002]
[1736862876879,0.1853,96532.0,96531.0,0.002]
[1736862877274,0.015,96532.0,96531.0,0.002]
[1736862881676,0.3608,96541.0,96531.0,0.002]
[1736862882076,0.3608,96532.0,96531.0,0.002]
[1736862882678,0.3608,96532.0,96531.0,0.001]
[1736862882884,0.3608,96532.0,96531.0,0.002]
[1736862883081,0.051815,96540.0,96531.0,0.002]
[1736862883283,0.378063,96541.0,96531.0,0.002]
[1736862883477,0.38554299,96541.0,96531.0,0.002]
[1736862883672,0.3748,96541.0,96531.0,0.002]
[1736862883880,0.014,96541.0,96537.0,0.3608]
[1736862884082,0.006,96541.0,96537.0,0.3608]
[1736862884587,0.006,96541.0,96531.0,0.001]
[1736862884778,0.014,96541.0,96531.0,0.002]
[1736862885378,0.008,96541.0,96535.0,0.3608]
[1736862885688,0.008,96541.0,96531.0,0.001]
[1736862886281,0.3608,96533.0,96516.0,0.3608]
[1736862886485,0.051816,96539.0,96516.0,0.3608]
[1736862886681,0.3608,96533.0,96516.0,0.3608]
[1736862887487,0.3608,96533.0,96531.0,0.001]
[1736862887986,0.3608,96533.0,96507.0,0.3608]
[1736862887987,0.051826,96520.0,96507.0,0.3608]
[1736862888190,0.51503073,96517.0,96500.0,0.24379553]
[1736862888690,0.51503073,96517.0,96497.0,0.3608]
[1736862889293,0.3608,96517.0,96497.0,0.3608]
[1736862889493,0.37162218,96517.0,96497.0,0.3608]
[1736862889991,0.15423073,96510.0,96497.0,0.3608]
[1736862890487,0.3608,96507.0,96498.0,0.0085544]
[1736862890691,0.412633,96507.0,96498.0,0.0085544]
[1736862891389,0.1792,96506.0,96498.0,0.0085544]
[1736862892589,0.1792,96506.0,96498.0,0.0075544]
[1736862892794,0.1792,96506.0,96498.0,0.0085544]
[1736862893388,0.1792,96506.0,96498.0,0.0025544]
[1736862893701,0.1792,96506.0,96498.0,0.0075544]
[1736862893993,0.051834,96505.0,96498.0,0.001]
[1736862894201,0.051838,96496.0,96485.0,0.3608]
[1736862894399,0.051839,96494.0,96485.0,0.3608]
[1736862894597,0.051841,96492.0,96485.0,0.3608]
[1736862894895,0.051844,96485.0,96484.0,0.24379553]
[1736862895098,0.051844,96485.0,96475.0,0.30474441]
[1736862895406,0.051844,96485.0,96464.0,0.00155486]
[1736862895407,0.3608,96476.0,96473.0,0.30474441]
[1736862896404,0.3608,96476.0,96466.0,0.30474441]
[1736862897106,0.3608,96476.0,96473.0,0.004]
[1736862897305,0.37119058,96476.0,96473.0,0.004]
[1736862897507,0.37119058,96476.0,96466.0,0.007]
[1736862897508,0.37219058,96476.0,96466.0,0.007]
[1736862897708,0.01139058,96476.0,96470.0,0.3608]
[1736862898011,0.001,96476.0,96471.0,0.001]
[1736862898215,0.3608,96486.0,96471.0,0.1688]
[1736862898903,0.3608,96486.0,96471.0,0.47354441]
[1736862899204,0.001,96476.0,96471.0,0.30474441]
[1736862899710,0.37122918,96486.0,96471.0,0.30474441]
[1736862899896,0.37122918,96486.0,96471.0,0.30874441]
[1736862900098,0.3608,96478.0,96471.0,0.004]
[1736862900299,0.051849,96477.0,96471.0,0.004]
[1736862900918,0.3608,96472.0,96471.0,0.004]
[1736862901110,0.3608,96472.0,96466.0,0.30474441]
[1736862901314,0.3608,96472.0,96471.0,0.004]
[1736862901815,0.051859,96458.0,96454.0,0.30474441]
[1736862902113,0.051859,96458.0,96446.0,0.36569329]
[1736862902114,0.051861,96454.0,96439.0,0.30474441]
[1736862902302,0.3608,96443.0,96439.0,0.30474441]
[1736862903309,0.3608,96443.0,96426.0,0.3518]
[1736862903505,0.3618,96443.0,96439.0,0.009]
[1736862903905,0.37232849,96443.0,96439.0,0.011]
[1736862904105,0.3618,96443.0,96439.0,0.011]
[1736862904311,0.001,96443.0,96439.0,0.01]
[1736862904512,0.3608,96455.0,96440.0,0.001]
[1736862904714,0.3608,96455.0,96445.0,0.15423073]
[1736862904910,0.3608,96473.0,96447.0,0.3608]
[1736862905108,0.3608,96473.0,96453.0,0.15423073]
[1736862905309,0.3608,96473.0,96463.0,0.15423073]
[1736862905908,0.3608,96473.0,96455.0,0.3608]
[1736862906307,0.3608,96473.0,96456.0,0.001]
[1736862906914,0.3638,96473.0,96460.0,0.15423073]
[1736862907301,0.3608,96473.0,96456.0,0.001]
[1736862907615,0.3618,96473.0,96464.0,0.3608]
[1736862907813,0.3618,96473.0,96465.0,0.1682]
[1736862908007,0.3618,96473.0,96465.0,0.1692]
[1736862909112,0.001,96473.0,96465.0,0.1692]
[1736862910212,0.01047419,96488.0,96472.0,0.3608]
[1736862910515,0.001,96473.0,96472.0,0.3608]
[1736862910713,0.3608,96490.0,96473.0,0.001]
[1736862910918,0.3608,96497.0,96483.0,0.3608]
[1736862911220,0.3608,96509.0,96493.0,0.3608]
[1736862911409,0.3608,96509.0,96494.0,0.1748]
[1736862912418,0.3608,96509.0,96499.0,0.15423073]
[1736862913219,0.3608,96509.0,96495.0,0.001]
[1736862913521,0.3608,96509.0,96494.0,0.1748]
[1736862913915,0.3608,96509.0,96499.0,0.51503073]
[1736862914123,0.3658,96509.0,96499.0,0.51503073]
[1736862914313,0.3658,96509.0,96500.0,0.001]
[1736862914927,0.3648,96509.0,96500.0,0.001]
[1736862915916,0.3658,96509.0,96500.0,0.001]
[1736862916217,0.3658,96509.0,96494.0,0.1748]
[1736862916723,0.3608,96497.0,96485.0,0.30474441]
[1736862916911,0.3608,96487.0,96485.0,0.30474441]
[1736862917112,0.3608,96487.0,96477.0,0.30474441]
[1736862917316,0.3608,96487.0,96477.0,0.81977514]
[1736862917525,0.3608,96487.0,96478.0,0.001]
[1736862917821,0.3608,96497.0,96486.0,0.3608]
[1736862918026,0.3608,96497.0,96487.0,0.15423073]
[1736862918324,0.3608,96497.0,96487.0,0.15523073]
[1736862918820,0.01474811,96509.0,96496.0,0.3608]
[1736862919022,0.004,96509.0,96507.0,0.3608]
[1736862919323,0.004,96509.0,96508.0,0.001]
[1736862919825,0.00155458,96529.0,96508.0,0.001]
[1736862920021,0.00155458,96529.0,96510.0,0.15423073]
[1736862920421,0.00155458,96529.0,96511.0,0.001]
[1736862921129,0.00155458,96529.0,96508.0,0.001]
[1736862921130,0.3608,96515.0,96510.0,0.001]
[1736862921620,0.1754,96514.0,96490.0,0.15423073]
[1736862921816,0.1754,96514.0,96511.0,0.002]
[1736862924122,0.1754,96514.0,96510.0,0.002]
[1736862924528,0.1754,96514.0,96510.0,0.001]
[1736862924731,0.1834,96514.0,96511.0,0.001]
[1736862924931,0.051829,96513.0,96487.0,0.00155445]
[1736862925229,0.3608,96501.0,96487.0,0.00155445]
[1736862927630,0.3608,96501.0,96487.0,0.00355445]
[1736862928332,0.37146913,96501.0,96487.0,0.00355445]
[1736862928832,0.37446913,96501.0,96487.0,0.00355445]
[1736862929435,0.3608,96488.0,96487.0,0.00355445]
[1736862931235,0.003,96488.0,96487.0,0.00355445]
[1736862931433,0.3608,96505.0,96487.0,0.35639745]
[1736862931627,0.1707,96521.0,96503.0,0.3608]
[1736862931931,0.3608,96530.0,96513.0,0.3608]
[1736862932138,0.3608,96530.0,96519.0,0.10318054]
[1736862932335,0.36132001,96548.0,96523.0,0.051824]
[1736862932534,0.1769,96558.0,96543.0,0.3608]
[1736862932835,0.18734291,96558.0,96543.0,0.3608]
[1736862933029,0.10318054,96553.0,96543.0,0.3608]
[1736862933229,0.051806,96557.0,96543.0,0.3608]
[1736862933829,0.051806,96557.0,96534.0,0.3608]
[1736862933830,0.3608,96548.0,96534.0,0.3608]
[1736862934027,0.051806,96557.0,96534.0,0.3608]
[1736862934331,0.3608,96548.0,96534.0,0.3608]
[1736862934636,0.3608,96548.0,96543.0,0.001]
[1736862935030,0.051811,96547.0,96523.0,0.00155409]
[1736862935429,0.216211,96547.0,96523.0,0.00155409]
[1736862936232,0.216211,96547.0,96543.0,0.001]
[1736862936835,0.3728,96548.0,96543.0,0.002]
[1736862937034,0.012,96548.0,96543.0,0.3628]
[1736862937330,0.004,96548.0,96543.0,0.3618]
[1736862937540,0.008,96547.0,96543.0,0.3628]
[1736862937731,0.012,96547.0,96543.0,0.3618]
[1736862938139,0.004,96547.0,96543.0,0.3618]
[1736862938624,0.007,96548.0,96543.0,0.3628]
[1736862938829,0.008,96547.0,96543.0,0.3628]
[1736862940437,0.015,96548.0,96543.0,0.3628]
[1736862940629,0.007,96547.0,96543.0,0.3628]
[1736862941030,0.007,96547.0,96543.0,0.3618]
[1736862941239,0.015,96547.0,96543.0,0.3628]
[1736862941535,0.3608,96546.0,96523.0,0.00155409]
[1736862941735,0.3608,96526.0,96523.0,0.00155409]
[1736862942139,0.1761,96525.0,96523.0,0.00155409]
[1736862943041,0.051823,96524.0,96523.0,0.00155409]
[1736862944933,0.3608,96526.0,96510.0,0.15467669]
[1736862945233,0.3608,96517.0,96511.0,0.001]
[1736862945632,0.3608,96517.0,96506.0,0.3608]
[1736862946641,0.3608,96509.0,96500.0,0.3608]
[1736862946844,0.3608,96509.0,96490.0,0.1792]
[1736862946845,0.3608,96501.0,96490.0,0.1792]
[1736862947344,0.3608,96501.0,96487.0,0.00155445]
[1736862947737,0.3608,96493.0,96487.0,0.00155445]
[1736862948639,0.3608,96493.0,96490.0,0.009]
[1736862948846,0.3618,96501.0,96490.0,0.009]
[1736862950135,0.3608,96493.0,96490.0,0.009]
[1736862950535,0.001,96501.0,96490.0,0.009]
[1736862950939,0.001,96493.0,96487.0,0.01155445]
[1736862951135,0.001,96493.0,96490.0,0.001]
[1736862951446,0.001,96493.0,96491.0,0.001]
[1736862951942,0.001,96493.0,96492.0,1.5]
[1736862952246,0.3608,96502.0,96492.0,1.5]
[1736862952440,0.3608,96502.0,96492.0,1.65567669]
[1736862952743,0.3608,96511.0,96501.0,0.3608]
[1736862952945,0.3608,96511.0,96502.0,0.1835]
[1736862953439,0.051831,96510.0,96500.0,0.3608]
[1736862953743,0.051831,96510.0,96491.0,0.009]
[1736862954334,0.001,96502.0,96492.0,0.009]
[1736862954742,0.3608,96501.0,96492.0,0.009]
[1736862955340,0.3608,96501.0,96487.0,0.00155445]
[1736862955643,0.3608,96501.0,96491.0,0.009]
[1736862957148,0.3608,96501.0,96490.0,0.15467669]
[1736862957443,0.3618,96501.0,96492.0,0.009]
[1736862957651,0.001,96501.0,96492.0,0.009]
[1736862957842,0.001,96501.0,96491.0,0.3708]
[1736862958148,0.001,96501.0,96499.0,0.3608]
[1736862960043,0.002,96501.0,96499.0,0.3608]
[1736862960247,0.002,96501.0,96500.0,0.001]
[1736862960848,0.002,96501.0,96499.0,0.3678]
[1736862961055,0.002,96501.0,96499.0,0.007]
[1736862961345,0.002,96501.0,96491.0,0.3608]
[1736862961346,0.002,96501.0,96500.0,0.006]
[1736862961940,0.001,96501.0,96499.0,0.007]
[1736862962153,0.002,96501.0,96499.0,0.007]
[1736862962844,0.01238745,96501.0,96499.0,0.007]
[1736862963052,0.002,96501.0,96499.0,0.3678]
[1736862963247,0.002,96501.0,96499.0,0.007]
[1736862963443,0.002,96501.0,96500.0,0.3608]
[1736862963645,0.001,96501.0,96500.0,0.3668]
[1736862963844,0.002,96501.0,96500.0,0.3668]
[1736862964244,0.002,96501.0,96500.0,0.3608]
[1736862964753,0.3608,96525.0,96502.0,0.051835]
[1736862964951,0.3608,96525.0,96513.0,0.3608]
[1736862965458,0.3608,96525.0,96514.0,0.1721]
[1736862966252,0.3608,96533.0,96522.0,0.3608]
[1736862966667,0.002,96525.0,96522.0,0.3608]
[1736862967572,0.002,96525.0,96514.0,0.1721]
[1736862968079,0.051823,96524.0,96522.0,0.001]
[1736862968279,0.051823,96524.0,96504.0,0.2450874]
[1736862968280,0.1779,96523.0,96504.0,0.2450874]
[1736862968468,0.05183,96511.0,96504.0,0.2450874]
[1736862968664,0.05183,96511.0,96492.0,0.2450874]
[1736862968970,0.3608,96499.0,96492.0,0.2450874]
[1736862969570,0.3555,96498.0,96492.0,0.2450874]
[1736862969769,0.3555,96498.0,96489.0,0.3608]
[1736862970276,0.051838,96497.0,96489.0,0.3608]
[1736862970476,0.229738,96497.0,96492.0,0.001]
[1736862970878,0.229738,96497.0,96492.0,0.006]
[1736862971376,0.229738,96497.0,96492.0,0.001]
[1736862971577,0.230738,96497.0,96492.0,0.001]
[1736862972179,0.229738,96497.0,96492.0,0.006]
[1736862972572,0.229738,96497.0,96492.0,0.005]
[1736862973179,0.23996743,96497.0,96492.0,0.005]
[1736862973478,0.24096743,96497.0,96492.0,0.005]
[1736862974678,0.24096743,96497.0,96480.0,0.3608]
[1736862974878,0.24096743,96497.0,96492.0,0.005]
[1736862977077,0.24196743,96497.0,96480.0,0.3698]
[1736862977473,0.15467669,96490.0,96480.0,0.3698]
[1736862977673,0.24196743,96497.0,96480.0,0.3698]
[1736862977881,0.051843,96488.0,96480.0,0.3698]
[1736862978075,0.051843,96488.0,96480.0,0.3608]
[1736862978781,0.3608,96484.0,96472.0,0.0015549]
[1736862979778,0.051845,96483.0,96480.0,0.01]
[1736862980479,0.051845,96483.0,96480.0,0.001]
[1736862980785,0.051845,96483.0,96472.0,0.0125549]
[1736862981078,0.052845,96483.0,96480.0,0.009]
[1736862981471,0.3608,96484.0,96472.0,0.0035549]
[1736862981672,0.001,96483.0,96480.0,0.009]
[1736862982379,0.001,96483.0,96481.0,0.001]
[1736862982569,0.001,96483.0,96480.0,0.009]
[1736862983672,0.412646,96482.0,96480.0,0.009]
[1736862984277,0.051852,96471.0,96467.0,0.2450874]
[1736862985380,0.051852,96471.0,96466.0,0.3608]
[1736862985575,0.051852,96471.0,96448.0,0.3651]
[1736862986286,0.3608,96463.0,96448.0,0.3651]
[1736862986475,0.3608,96463.0,96462.0,1e-08]
[1736862987179,0.3608,96463.0,96462.0,0.00300001]
[1736862987376,0.3608,96463.0,96462.0,0.00800001]
[1736862987888,0.3715241,96463.0,96462.0,0.00300001]
[1736862989084,0.3725241,96463.0,96462.0,1e-08]
[1736862989880,0.3735241,96463.0,96462.0,0.00400001]
[1736862992182,0.3725241,96463.0,96462.0,0.00400001]
[1736862992692,0.051857,96461.0,96441.0,0.00155545]
[1736862992986,0.15467669,96460.0,96441.0,0.00155545]
[1736862993187,0.15467669,96460.0,96446.0,0.3608]
[1736862993584,0.051857,96461.0,96446.0,0.3608]
[1736862994191,0.002,96463.0,96454.0,0.3608]
[1736862994380,0.001,96460.0,96455.0,0.3602]
[1736862994780,0.002,96463.0,96456.0,0.001]
[1736862994982,0.002,96463.0,96457.0,0.1727]
[1736862995292,0.002,96463.0,96458.0,0.001]
[1736862995586,0.15467669,96480.0,96458.0,0.001]